Workbook

Sheet DA S0FTWARE
T2: =CONCATENATE(DAY(DATE(code!M8,code!K8,1)),"-",MONTH(DATE(code!M8,code!K8,1)),"-",YEAR(DATE(code!M8,code!K8,1))) -> 1-1-2015 | U2: =code!M8 -> 1905-07-07
B3: President | F3: Greneral Secretary | M3: Finance Secratary
B4: =S29 -> 0 | F4: =S30 -> 0 | M4: =S31 -> 0
B5: =T29 -> 0 | F5: =T30 -> 0 | M5: =T31 -> 0
B6: =CONCATENATE("D.A enhanced from ",S9*100,"% to ",S8*100,"%. ","Enhancement : ",(S8-S9)*100,"% ","The D.A arrears from ",DAY(DATE(code!M8,code!K8,1)),"-",MONTH(DATE(code!M8,code!K8,1)),"-",YEAR(DATE(code!M8,code!K8,1))," to ",IF(code!R8=3,code!Q6,CONCATENATE(code!E22,"-",MONTH(code!T22),"-",YEAR(code!T22)))," will be adjusted to the ",code!S8," Accounts. Cash will be paid from ",IF(code!R8=3,CONCATENATE(DAY(code!T3),"-",MONTH(code!T3),"-",YEAR(code!T3)),CONCATENATE(DAY(code!O6),"-",MONTH(code!O6),"-",YEAR(code!O6)))) -> D.A enhanced from 8.908% to 12.052%. Enhancement : 3.144% The D.A arrears from 1-1-2015 to 31-12-2015 will be adjusted to the ZPPF Accounts. Cash will be paid from 1-1-2016
B7: Increment Rate | C7: Basic Pay | D7: =CONCATENATE("D.A To be Drawn (",S8*100,"%)") -> D.A To be Drawn (12.052%) | E7: =CONCATENATE("D.A already Drawn (",S9*100,"%)") -> D.A already Drawn (8.908%) | F7: =CONCATENATE("difference (",(S8-S9)*100,"%)") -> difference (3.144%) | G7: =CONCATENATE(code!S8,":",code!K8,"/",RIGHT(code!M8,2)," to ",code!W24," (",code!P23," months)") -> ZPPF:1/15 to 12/15 (12 months) | H7: =CONCATENATE("CASH:"," ",code!O8,"/",code!Q8," (",code!U8," months)") -> CASH: 1/2016 (1 months) | J7: Increment Rate | K7: =C7 -> Basic Pay | L7: D.A To be Drawn (12.052%) | M7: D.A already Drawn (8.908%) | N7: difference (3.144%) | O7: =G7 -> ZPPF:1/15 to 12/15 (12 months) | P7: CASH: 1/2016 (1 months) | R7: D.A (For Print Use legal Pepar) | U7: Edit only Green color cells
B8: =C9-C8 -> 390 | C8: =code!H2 -> 13000 | D8: =ROUND((C8*S8),0) -> 1567 | E8: =ROUND((C8*S9),0) -> 1158 | F8: =D8-E8 -> 409 | G8: =ROUND((F8*code!$P$23),0) -> 4908 | H8: =ROUND((F8*code!$U$8),0) -> 409 | J8: =K9-K8 -> 1110 | K8: =code!H43 -> 41380 | L8: =ROUND((K8*$S$8),0) -> 4987 | M8: =ROUND((K8*$S$9),0) -> 3686 | N8: =L8-M8 -> 1301 | O8: =ROUND((N8*code!$P$23),0) -> 15612 | P8: =ROUND((N8*code!$U$8),0) -> 1301 | R8: To Be | S8: 0.12052
C9: =code!H3 -> 13390 | D9: =ROUND((C9*S8),0) -> 1614 | E9: =ROUND((C9*S9),0) -> 1193 | F9: 421 | G9: =ROUND((F9*code!$P$23),0) -> 5052 | H9: =ROUND((F9*code!$U$8),0) -> 421 | K9: =code!H44 -> 42490 | L9: =ROUND((K9*$S$8),0) -> 5121 | M9: =ROUND((K9*$S$9),0) -> 3785 | N9: =L9-M9 -> 1336 | O9: =ROUND((N9*code!$P$23),0) -> 16032 | P9: =ROUND((N9*code!$U$8),0) -> 1336 | R9: Already | S9: 0.08908
C10: =code!H4 -> 13780 | D10: =ROUND((C10*S8),0) -> 1661 | E10: =ROUND((C10*S9),0) -> 1228 | F10: 433 | G10: =ROUND((F10*code!$P$23),0) -> 5196 | H10: =ROUND((F10*code!$U$8),0) -> 433 | J10: =K11-K10 -> 1190 | K10: =code!H45 -> 43680 | L10: 5264 | M10: 3891 | N10: 1373 | O10: =ROUND((N10*code!$P$23),0) -> 16476 | P10: =ROUND((N10*code!$U$8),0) -> 1373
C11: =code!H5 -> 14170 | D11: =ROUND((C11*S8),0) -> 1708 | E11: =ROUND((C11*S9),0) -> 1262 | F11: 446 | G11: =ROUND((F11*code!$P$23),0) -> 5352 | H11: =ROUND((F11*code!$U$8),0) -> 446 | K11: =code!H46 -> 44870 | L11: 5408 | M11: 3997 | N11: 1411 | O11: =ROUND((N11*code!$P$23),0) -> 16932 | P11: =ROUND((N11*code!$U$8),0) -> 1411
B12: =C13-C12 -> 430 | C12: =code!H6 -> 14600 | D12: =ROUND((C12*S8),0) -> 1760 | E12: =ROUND((C12*S9),0) -> 1301 | F12: 459 | G12: =ROUND((F12*code!$P$23),0) -> 5508 | H12: =ROUND((F12*code!$U$8),0) -> 459 | K12: =code!H47 -> 46060 | L12: 5551 | M12: 4103 | N12: 1448 | O12: =ROUND((N12*code!$P$23),0) -> 17376 | P12: =ROUND((N12*code!$U$8),0) -> 1448
C13: =code!H7 -> 15030 | D13: =ROUND((C13*S8),0) -> 1811 | E13: =ROUND((C13*S9),0) -> 1339 | F13: 472 | G13: =ROUND((F13*code!$P$23),0) -> 5664 | H13: =ROUND((F13*code!$U$8),0) -> 472 | J13: =K14-K13 -> 1270 | K13: =code!H48 -> 47330 | L13: 5704 | M13: 4216 | N13: 1488 | O13: =ROUND((N13*code!$P$23),0) -> 17856 | P13: =ROUND((N13*code!$U$8),0) -> 1488 | R13: To ZPPF
C14: =code!H8 -> 15460 | D14: =ROUND((C14*S8),0) -> 1863 | E14: =ROUND((C14*S9),0) -> 1377 | F14: 486 | G14: =ROUND((F14*code!$P$23),0) -> 5832 | H14: =ROUND((F14*code!$U$8),0) -> 486 | K14: =code!H49 -> 48600 | L14: 5857 | M14: 4329 | N14: 1528 | O14: =ROUND((N14*code!$P$23),0) -> 18336 | P14: =ROUND((N14*code!$U$8),0) -> 1528 | R14: CASH | S14: TO
B15: =C16-C15 -> 470 | C15: =code!H9 -> 15930 | D15: =ROUND((C15*S8),0) -> 1920 | E15: =ROUND((C15*S9),0) -> 1419 | F15: 501 | G15: =ROUND((F15*code!$P$23),0) -> 6012 | H15: =ROUND((F15*code!$U$8),0) -> 501 | K15: =code!H50 -> 49870 | L15: 6010 | M15: 4442 | N15: 1568 | O15: =ROUND((N15*code!$P$23),0) -> 18816 | P15: =ROUND((N15*code!$U$8),0) -> 1568
C16: =code!H10 -> 16400 | D16: =ROUND((C16*S8),0) -> 1977 | E16: =ROUND((C16*S9),0) -> 1461 | F16: 516 | G16: =ROUND((F16*code!$P$23),0) -> 6192 | H16: =ROUND((F16*code!$U$8),0) -> 516 | J16: =K17-K16 -> 1360 | K16: =code!H51 -> 51230 | L16: 6174 | M16: 4564 | N16: 1610 | O16: =ROUND((N16*code!$P$23),0) -> 19320 | P16: =ROUND((N16*code!$U$8),0) -> 1610 | R16: Teacher's Union Name | X16: =UPPER(R17) -> STU
C17: =code!H11 -> 16870 | D17: =ROUND((C17*S8),0) -> 2033 | E17: =ROUND((C17*S9),0) -> 1503 | F17: 530 | G17: =ROUND((F17*code!$P$23),0) -> 6360 | H17: =ROUND((F17*code!$U$8),0) -> 530 | K17: =code!H52 -> 52590 | L17: 6338 | M17: 4685 | N17: 1653 | O17: =ROUND((N17*code!$P$23),0) -> 19836 | P17: =ROUND((N17*code!$U$8),0) -> 1653 | R17: stu
B18: =C19-C18 -> 510 | C18: =code!H12 -> 17380 | D18: =ROUND((C18*S8),0) -> 2095 | E18: =ROUND((C18*S9),0) -> 1548 | F18: 547 | G18: =ROUND((F18*code!$P$23),0) -> 6564 | H18: =ROUND((F18*code!$U$8),0) -> 547 | K18: =code!H53 -> 53950 | L18: 6502 | M18: 4806 | N18: 1696 | O18: =ROUND((N18*code!$P$23),0) -> 20352 | P18: =ROUND((N18*code!$U$8),0) -> 1696
C19: =code!H13 -> 17890 | D19: =ROUND((C19*S8),0) -> 2156 | E19: =ROUND((C19*S9),0) -> 1594 | F19: 562 | G19: =ROUND((F19*code!$P$23),0) -> 6744 | H19: =ROUND((F19*code!$U$8),0) -> 562 | J19: =K20-K19 -> 1460 | K19: =code!H54 -> 55410 | L19: 6678 | M19: 4936 | N19: 1742 | O19: =ROUND((N19*code!$P$23),0) -> 20904 | P19: =ROUND((N19*code!$U$8),0) -> 1742 | R19: DA GO(P) No
C20: =code!H14 -> 18400 | D20: =ROUND((C20*S8),0) -> 2218 | E20: =ROUND((C20*S9),0) -> 1639 | F20: 579 | G20: =ROUND((F20*code!$P$23),0) -> 6948 | H20: =ROUND((F20*code!$U$8),0) -> 579 | K20: =code!H55 -> 56870 | L20: 6854 | M20: 5066 | N20: 1788 | O20: =ROUND((N20*code!$P$23),0) -> 21456 | P20: =ROUND((N20*code!$U$8),0) -> 1788 | R20: No | S20: Date
B21: =C22-C21 -> 550 | C21: =code!H15 -> 18950 | D21: =ROUND((C21*S8),0) -> 2284 | E21: =ROUND((C21*S9),0) -> 1688 | F21: 596 | G21: =ROUND((F21*code!$P$23),0) -> 7152 | H21: =ROUND((F21*code!$U$8),0) -> 596 | K21: =code!H56 -> 58330 | L21: 7030 | M21: 5196 | N21: 1834 | O21: =ROUND((N21*code!$P$23),0) -> 22008 | P21: =ROUND((N21*code!$U$8),0) -> 1834 | R21: 18
C22: =code!H16 -> 19500 | D22: =ROUND((C22*S8),0) -> 2350 | E22: =ROUND((C22*S9),0) -> 1737 | F22: 613 | G22: =ROUND((F22*code!$P$23),0) -> 7356 | H22: =ROUND((F22*code!$U$8),0) -> 613 | J22: =K23-K22 -> 1560 | K22: =code!H57 -> 59890 | L22: 7218 | M22: 5335 | N22: 1883 | O22: =ROUND((N22*code!$P$23),0) -> 22596 | P22: =ROUND((N22*code!$U$8),0) -> 1883
C23: =code!H17 -> 20050 | D23: =ROUND((C23*S8),0) -> 2416 | E23: =ROUND((C23*S9),0) -> 1786 | F23: 630 | G23: =ROUND((F23*code!$P$23),0) -> 7560 | H23: =ROUND((F23*code!$U$8),0) -> 630 | K23: =code!H58 -> 61450 | L23: 7406 | M23: 5474 | N23: 1932 | O23: =ROUND((N23*code!$P$23),0) -> 23184 | P23: =ROUND((N23*code!$U$8),0) -> 1932
B24: =C25-C24 -> 590 | C24: =code!H18 -> 20640 | D24: =ROUND((C24*S8),0) -> 2488 | E24: =ROUND((C24*S9),0) -> 1839 | F24: 649 | G24: =ROUND((F24*code!$P$23),0) -> 7788 | H24: =ROUND((F24*code!$U$8),0) -> 649 | K24: =code!H59 -> 63010 | L24: 7594 | M24: 5613 | N24: 1981 | O24: =ROUND((N24*code!$P$23),0) -> 23772 | P24: =ROUND((N24*code!$U$8),0) -> 1981 | R24: Mandal
C25: =code!H19 -> 21230 | D25: =ROUND((C25*S8),0) -> 2559 | E25: =ROUND((C25*S9),0) -> 1891 | F25: 668 | G25: =ROUND((F25*code!$P$23),0) -> 8016 | H25: =ROUND((F25*code!$U$8),0) -> 668 | J25: =K26-K25 -> 1660 | K25: =code!H60 -> 64670 | L25: 7794 | M25: 5761 | N25: 2033 | O25: =ROUND((N25*code!$P$23),0) -> 24396 | P25: =ROUND((N25*code!$U$8),0) -> 2033 | R25: President
C26: =code!H20 -> 21820 | D26: =ROUND((C26*S8),0) -> 2630 | E26: =ROUND((C26*S9),0) -> 1944 | F26: 686 | G26: =ROUND((F26*code!$P$23),0) -> 8232 | H26: =ROUND((F26*code!$U$8),0) -> 686 | K26: =code!H61 -> 66330 | L26: 7994 | M26: 5909 | N26: 2085 | O26: =ROUND((N26*code!$P$23),0) -> 25020 | P26: =ROUND((N26*code!$U$8),0) -> 2085 | R26: Gen Sec
B27: =C28-C27 -> 640 | C27: =code!H21 -> 22460 | D27: =ROUND((C27*S8),0) -> 2707 | E27: =ROUND((C27*S9),0) -> 2001 | F27: 706 | G27: =ROUND((F27*code!$P$23),0) -> 8472 | H27: =ROUND((F27*code!$U$8),0) -> 706 | K27: =code!H62 -> 67990 | L27: 8194 | M27: 6057 | N27: 2137 | O27: =ROUND((N27*code!$P$23),0) -> 25644 | P27: =ROUND((N27*code!$U$8),0) -> 2137
C28: =code!H22 -> 23100 | D28: =ROUND((C28*S8),0) -> 2784 | E28: =ROUND((C28*S9),0) -> 2058 | F28: 726 | G28: =ROUND((F28*code!$P$23),0) -> 8712 | H28: =ROUND((F28*code!$U$8),0) -> 726 | J28: =K29-K28 -> 1760 | K28: =code!H63 -> 69750 | L28: 8406 | M28: 6213 | N28: 2193 | O28: =ROUND((N28*code!$P$23),0) -> 26316 | P28: =ROUND((N28*code!$U$8),0) -> 2193 | R28: District | S28: YSR KADAPA | T28: Cell
C29: =code!H23 -> 23740 | D29: =ROUND((C29*S8),0) -> 2861 | E29: =ROUND((C29*S9),0) -> 2115 | F29: 746 | G29: =ROUND((F29*code!$P$23),0) -> 8952 | H29: =ROUND((F29*code!$U$8),0) -> 746 | K29: =code!H64 -> 71510 | L29: 8618 | M29: 6370 | N29: 2248 | O29: =ROUND((N29*code!$P$23),0) -> 26976 | P29: =ROUND((N29*code!$U$8),0) -> 2248 | R29: President
B30: =C31-C30 -> 700 | C30: =code!H24 -> 24440 | D30: =ROUND((C30*S8),0) -> 2946 | E30: =ROUND((C30*S9),0) -> 2177 | F30: 769 | G30: =ROUND((F30*code!$P$23),0) -> 9228 | H30: =ROUND((F30*code!$U$8),0) -> 769 | K30: =code!H65 -> 73270 | L30: 8831 | M30: 6527 | N30: 2304 | O30: =ROUND((N30*code!$P$23),0) -> 27648 | P30: =ROUND((N30*code!$U$8),0) -> 2304 | R30: Gen Sec
C31: =code!H25 -> 25140 | D31: =ROUND((C31*S8),0) -> 3030 | E31: =ROUND((C31*S9),0) -> 2239 | F31: 791 | G31: =ROUND((F31*code!$P$23),0) -> 9492 | H31: =ROUND((F31*code!$U$8),0) -> 791 | J31: =K32-K31 -> 1880 | K31: =code!H66 -> 75150 | L31: 9057 | M31: 6694 | N31: 2363 | O31: =ROUND((N31*code!$P$23),0) -> 28356 | P31: =ROUND((N31*code!$U$8),0) -> 2363 | R31: Finance Sec
C32: =code!H26 -> 25840 | D32: =ROUND((C32*S8),0) -> 3114 | E32: =ROUND((C32*S9),0) -> 2302 | F32: 812 | G32: =ROUND((F32*code!$P$23),0) -> 9744 | H32: =ROUND((F32*code!$U$8),0) -> 812 | K32: =code!H67 -> 77030 | L32: 9284 | M32: 6862 | N32: 2422 | O32: =ROUND((N32*code!$P$23),0) -> 29064 | P32: =ROUND((N32*code!$U$8),0) -> 2422
B33: =C34-C33 -> 760 | C33: =code!H27 -> 26600 | D33: =ROUND((C33*S8),0) -> 3206 | E33: =ROUND((C33*S9),0) -> 2370 | F33: 836 | G33: =ROUND((F33*code!$P$23),0) -> 10032 | H33: =ROUND((F33*code!$U$8),0) -> 836 | K33: =code!H68 -> 78910 | L33: 9510 | M33: 7029 | N33: 2481 | O33: =ROUND((N33*code!$P$23),0) -> 29772 | P33: =ROUND((N33*code!$U$8),0) -> 2481
C34: =code!H28 -> 27360 | D34: =ROUND((C34*S8),0) -> 3297 | E34: =ROUND((C34*S9),0) -> 2437 | F34: 860 | G34: =ROUND((F34*code!$P$23),0) -> 10320 | H34: =ROUND((F34*code!$U$8),0) -> 860 | J34: =K35-K34 -> 2020 | K34: =code!H69 -> 80930 | L34: 9754 | M34: 7209 | N34: 2545 | O34: =ROUND((N34*code!$P$23),0) -> 30540 | P34: =ROUND((N34*code!$U$8),0) -> 2545
C35: =code!H29 -> 28120 | D35: =ROUND((C35*S8),0) -> 3389 | E35: =ROUND((C35*S9),0) -> 2505 | F35: 884 | G35: =ROUND((F35*code!$P$23),0) -> 10608 | H35: =ROUND((F35*code!$U$8),0) -> 884 | K35: =code!H70 -> 82950 | L35: 9997 | M35: 7389 | N35: 2608 | O35: =ROUND((N35*code!$P$23),0) -> 31296 | P35: =ROUND((N35*code!$U$8),0) -> 2608
B36: =C37-C36 -> 820 | C36: =code!H30 -> 28940 | D36: =ROUND((C36*S8),0) -> 3488 | E36: =ROUND((C36*S9),0) -> 2578 | F36: 910 | G36: =ROUND((F36*code!$P$23),0) -> 10920 | H36: =ROUND((F36*code!$U$8),0) -> 910 | K36: =code!H71 -> 84970 | L36: 10241 | M36: 7569 | N36: 2672 | O36: =ROUND((N36*code!$P$23),0) -> 32064 | P36: =ROUND((N36*code!$U$8),0) -> 2672
C37: =code!H31 -> 29760 | D37: =ROUND((C37*S8),0) -> 3587 | E37: =ROUND((C37*S9),0) -> 2651 | F37: 936 | G37: =ROUND((F37*code!$P$23),0) -> 11232 | H37: =ROUND((F37*code!$U$8),0) -> 936 | J37: =K38-K37 -> 2160 | K37: =code!H72 -> 87130 | L37: 10501 | M37: 7762 | N37: 2739 | O37: =ROUND((N37*code!$P$23),0) -> 32868 | P37: =ROUND((N37*code!$U$8),0) -> 2739
C38: =code!H32 -> 30580 | D38: =ROUND((C38*S8),0) -> 3686 | E38: =ROUND((C38*S9),0) -> 2724 | F38: 962 | G38: =ROUND((F38*code!$P$23),0) -> 11544 | H38: =ROUND((F38*code!$U$8),0) -> 962 | K38: =code!H73 -> 89290 | L38: 10761 | M38: 7954 | N38: 2807 | O38: =ROUND((N38*code!$P$23),0) -> 33684 | P38: =ROUND((N38*code!$U$8),0) -> 2807
B39: =C40-C39 -> 880 | C39: =code!H33 -> 31460 | D39: =ROUND((C39*$S$8),0) -> 3792 | E39: =ROUND((C39*$S$9),0) -> 2802 | F39: 990 | G39: =ROUND((F39*code!$P$23),0) -> 11880 | H39: =ROUND((F39*code!$U$8),0) -> 990 | K39: =code!H74 -> 91450 | L39: 11022 | M39: 8146 | N39: 2876 | O39: =ROUND((N39*code!$P$23),0) -> 34512 | P39: =ROUND((N39*code!$U$8),0) -> 2876
C40: =code!H34 -> 32340 | D40: =ROUND((C40*$S$8),0) -> 3898 | E40: =ROUND((C40*$S$9),0) -> 2881 | F40: =D40-E40 -> 1017 | G40: =ROUND((F40*code!$P$23),0) -> 12204 | H40: =ROUND((F40*code!$U$8),0) -> 1017 | J40: =K41-K40 -> 2330 | K40: =code!H75 -> 93780 | L40: 11302 | M40: 8354 | N40: 2948 | O40: =ROUND((N40*code!$P$23),0) -> 35376 | P40: =ROUND((N40*code!$U$8),0) -> 2948
C41: =code!H35 -> 33220 | D41: 4004 | E41: 2959 | F41: 1045 | G41: =ROUND((F41*code!$P$23),0) -> 12540 | H41: =ROUND((F41*code!$U$8),0) -> 1045 | K41: =code!H76 -> 96110 | L41: 11583 | M41: 8561 | N41: 3022 | O41: =ROUND((N41*code!$P$23),0) -> 36264 | P41: =ROUND((N41*code!$U$8),0) -> 3022
B42: =C43-C42 -> 950 | C42: =code!H36 -> 34170 | D42: 4118 | E42: 3044 | F42: 1074 | G42: =ROUND((F42*code!$P$23),0) -> 12888 | H42: =ROUND((F42*code!$U$8),0) -> 1074 | K42: =code!H77 -> 98440 | L42: 11864 | M42: 8769 | N42: 3095 | O42: =ROUND((N42*code!$P$23),0) -> 37140 | P42: =ROUND((N42*code!$U$8),0) -> 3095
C43: =code!H37 -> 35120 | D43: 4233 | E43: 3128 | F43: 1105 | G43: =ROUND((F43*code!$P$23),0) -> 13260 | H43: =ROUND((F43*code!$U$8),0) -> 1105 | K43: =code!H78 -> 100770 | L43: 12145 | M43: 8977 | N43: 3168 | O43: =ROUND((N43*code!$P$23),0) -> 38016 | P43: =ROUND((N43*code!$U$8),0) -> 3168
C44: =code!H38 -> 36070 | D44: 4347 | E44: 3213 | F44: 1134 | G44: =ROUND((F44*code!$P$23),0) -> 13608 | H44: =ROUND((F44*code!$U$8),0) -> 1134 | J44: =K45-K44 -> 2520 | K44: =code!H79 -> 103290 | L44: 12449 | M44: 9201 | N44: 3248 | O44: =ROUND((N44*code!$P$23),0) -> 38976 | P44: =ROUND((N44*code!$U$8),0) -> 3248
B45: =C46-C45 -> 1030 | C45: =code!H39 -> 37100 | D45: 4471 | E45: 3305 | F45: 1166 | G45: =ROUND((F45*code!$P$23),0) -> 13992 | H45: =ROUND((F45*code!$U$8),0) -> 1166 | K45: =code!H80 -> 105810 | L45: 12752 | M45: 9426 | N45: 3326 | O45: =ROUND((N45*code!$P$23),0) -> 39912 | P45: =ROUND((N45*code!$U$8),0) -> 3326
C46: =code!H40 -> 38130 | D46: 4595 | E46: 3397 | F46: 1198 | G46: =ROUND((F46*code!$P$23),0) -> 14376 | H46: =ROUND((F46*code!$U$8),0) -> 1198 | K46: =code!H81 -> 108330 | L46: 13056 | M46: 9650 | N46: 3406 | O46: =ROUND((N46*code!$P$23),0) -> 40872 | P46: =ROUND((N46*code!$U$8),0) -> 3406
C47: =code!H41 -> 39160 | D47: 4720 | E47: 3488 | F47: 1232 | G47: =ROUND((F47*code!$P$23),0) -> 14784 | H47: =ROUND((F47*code!$U$8),0) -> 1232 | K47: =code!H82 -> 110850 | L47: =ROUND((K47*$S$8),0) -> 13360 | M47: =ROUND((K47*$S$9),0) -> 9875 | N47: =L47-M47 -> 3485 | O47: =ROUND((N47*code!$P$23),0) -> 41820 | P47: =ROUND((N47*code!$U$8),0) -> 3485
B48: =K8-C48 -> 1110 | C48: =code!H42 -> 40270 | D48: 4853 | E48: 3587 | F48: 1266 | G48: =ROUND((F48*code!$P$23),0) -> 15192 | H48: =ROUND((F48*code!$U$8),0) -> 1266 | J48: =UPPER(R17)&"-"&UPPER(R17)&"-"&UPPER(R17)&"-"&UPPER(R17)&"-"&UPPER(R17)&"-"&UPPER(R17) -> STU-STU-STU-STU-STU-STU
B49: =CONCATENATE("Prepared by:",UPPER(R17)," "," cell:9494796587,9666570250") -> Prepared by:STU cell:9494796587,9666570250
B50: =IF(S24=0," ","GS/PRE,"&UPPER(S24)&" UNIT") -> 
B57: =UPPER(S28) -> YSR KADAPA

Sheet code (hidden)
G2: 1 | H2: 13000 | J2: =CONCATENATE(DAY(DATE(code!M8,code!K8,1)),"-",MONTH(DATE(code!M8,code!K8,1)),"-",YEAR(DATE(code!M8,code!K8,1))) -> 1-1-2015
G3: 2 | H3: 13390 | Q3: =DATE(code!M8,code!K8,1) -> 2015-01-01 | T3: =1&"-"&MONTH(Q6+1)&"-"&YEAR(Q6) -> 1-1-2016
G4: 3 | H4: 13780
E5: D.A READY RECKONER | G5: 4 | H5: 14170
G6: 5 | H6: 14600 | J6: =DATE(M8,K8,1) -> 2015-01-01 | K6: =DAY(J6)&"-"&MONTH(J6)&"-"&YEAR(J6) -> 1-1-2015 | O6: =DATE(Q8,O8,1) -> 2016-01-01 | P6: =DAY(O6)&"-"&R6&"-"&YEAR(O6) -> 1-12-2016 | Q6: =E22&"-"&MONTH(P6)&"-"&YEAR(O6) -> 31-12-2016 | R6: =IF(O8=1,12,O8-1) -> 12
G7: 6 | H7: 15030 | K7: ZPPF | O7: CASH
G8: 7 | H8: 15460 | J8: =LOOKUP(K8,J9:K20,K9:K20) -> Jan | K8: 1 | L8: 1 | M8: =LOOKUP(L8,J9:L11,L9:L11) -> 2015 | N8: =LOOKUP(O8,N9:O20,O9:O20) -> Jan | O8: 1 | P8: 2 | Q8: =LOOKUP(P8,N9:P11,P9:P11) -> 2016 | R8: 1 | S8: =LOOKUP(R8,Q9:R11,R9:R11) -> ZPPF | T8: 1 | U8: =ABS(O8-T8)+1 -> 1
E9: 5 | G9: 8 | H9: 15930 | J9: 1 | K9: Jan | L9: 2015 | N9: 1 | O9: Jan | P9: 2015 | Q9: 1 | R9: ZPPF
E10: 1 | G10: 9 | H10: 16400 | J10: 2 | K10: Feb | L10: 2016 | N10: 2 | O10: Feb | P10: 2016 | Q10: 2 | R10: GPF
G11: 10 | H11: 16870 | J11: 3 | K11: Mar | L11: 2017 | N11: 3 | O11: Mar | P11: 2017 | Q11: 3 | R11: CPS
G12: 11 | H12: 17380 | J12: 4 | K12: Apr | N12: 4 | O12: Apr | U12: =UPPER(LEFT('DA S0FTWARE'!$R$17,1)&" "&MID('DA S0FTWARE'!$R$17,2,1)&" "&MID('DA S0FTWARE'!$R$17,3,1)&" "&MID('DA S0FTWARE'!$R$17,4,1)&" "&MID('DA S0FTWARE'!$R$17,5,1)&" "&MID('DA S0FTWARE'!$R$17,6,1)&" "&MID('DA S0FTWARE'!$R$17,7,1)&" "&MID('DA S0FTWARE'!$R$17,8,1)&" "&MID('DA S0FTWARE'!$R$17,9,1)) -> S T U
G13: 12 | H13: 17890 | J13: 5 | K13: May | N13: 5 | O13: May | U13: =UPPER('DA S0FTWARE'!$R$17) -> STU
C14: Feb | G14: 13 | H14: 18400 | J14: 6 | K14: Jun | N14: 6 | O14: Jun
C15: 2012 | D15: 28 | G15: 14 | H15: 18950 | J15: 7 | K15: Jul | N15: 7 | O15: Jul
C16: 2013 | D16: 28 | G16: 15 | H16: 19500 | J16: 8 | K16: Aug | N16: 8 | O16: Aug
C17: 2014 | D17: 29 | G17: 16 | H17: 20050 | J17: 9 | K17: Sep | N17: 9 | O17: Sep
C18: 2015 | D18: 28 | G18: 17 | H18: 20640 | J18: 10 | K18: Oct | N18: 10 | O18: Oct | U18: =YEAR(T24) -> 2015
C19: 2016 | D19: 28 | G19: 18 | H19: 21230 | J19: 11 | K19: Nov | N19: 11 | O19: Nov
C20: 2017 | D20: 28 | G20: 19 | H20: 21820 | J20: 12 | K20: Dec | N20: 12 | O20: Dec
C21: 2018 | D21: 29 | G21: 20 | H21: 22460
C22: 1 | D22: 31 | E22: =LOOKUP(V24,C22:D33,D22:D33) -> 31 | G22: 21 | H22: 23100 | K22: ZPPF | N22: ZPPF | P22: Diff | T22: =DATE(U26,V24,1) -> 2015-12-01
C23: 2 | D23: =IF(OR(YEAR(T22)=2012,YEAR(T22)=2016),29,28) -> 28 | G23: 22 | H23: 23740 | J23: =CONCATENATE(J8," ",RIGHT(M8,2)) -> Jan 15 | K23: =MATCH(J23,K24:K59,0) -> 1 | M23: =CONCATENATE(N8," ",RIGHT(Q8,2)) -> Jan 16 | N23: =MATCH(M23,N24:N59,0) -> 13 | P23: =N23-K23 -> 12 | T23: =T24 -> Dec 15
B24: =IF('DA S0FTWARE'!$R$21=0," ",code!J24) -> 1 | C24: 3 | D24: 31 | E24: =IF('DA S0FTWARE'!$R$21=0," ",code!K24) -> Jan 15 | G24: 23 | H24: 24440 | J24: 1 | K24: =CONCATENATE(K9," ",RIGHT($L$9,2)) -> Jan 15 | M24: =J24 -> 1 | N24: =K24 -> Jan 15 | Q24: 1 | R24: =K24 -> Jan 15 | T24: =LOOKUP(N23,Q24:R61,S24:S60) -> Dec 15 | U24: =LEFT(T24,3) -> Dec | V24: =MATCH(U24,O9:O20,0) -> 12 | W24: =CONCATENATE(V24,"/",RIGHT(T24,2)) -> 12/15
B25: =IF('DA S0FTWARE'!$R$21=0," ",code!J25) -> 2 | C25: 4 | D25: 30 | E25: =IF('DA S0FTWARE'!$R$21=0," ",code!K25) -> Feb 15 | G25: 24 | H25: 25140 | J25: 2 | K25: =CONCATENATE(K10," ",RIGHT($L$9,2)) -> Feb 15 | M25: 2 | N25: Feb 15 | Q25: 2 | R25: =K25 -> Feb 15 | S25: =R24 -> Jan 15
B26: =IF('DA S0FTWARE'!$R$21=0," ",code!J26) -> 3 | C26: 5 | D26: 31 | E26: =IF('DA S0FTWARE'!$R$21=0," ",code!K26) -> Mar 15 | G26: 25 | H26: 25840 | J26: 3 | K26: Mar 15 | M26: 3 | N26: Mar 15 | Q26: 3 | R26: Mar 15 | S26: =R25 -> Feb 15 | U26: ="20"&RIGHT(T24,2) -> 2015
B27: =IF('DA S0FTWARE'!$R$21=0," ",code!J27) -> 4 | C27: 6 | D27: 30 | E27: =IF('DA S0FTWARE'!$R$21=0," ",code!K27) -> Apr 15 | G27: 26 | H27: 26600 | J27: 4 | K27: Apr 15 | M27: 4 | N27: Apr 15 | Q27: 4 | R27: Apr 15 | S27: Mar 15
B28: =IF('DA S0FTWARE'!$R$21=0," ",code!J28) -> 5 | C28: 7 | D28: 31 | E28: =IF('DA S0FTWARE'!$R$21=0," ",code!K28) -> May 15 | G28: 27 | H28: 27360 | J28: 5 | K28: May 15 | M28: 5 | N28: May 15 | Q28: 5 | R28: May 15 | S28: Apr 15
B29: =IF('DA S0FTWARE'!$R$21=0," ",code!J29) -> 6 | C29: 8 | D29: 31 | E29: =IF('DA S0FTWARE'!$R$21=0," ",code!K29) -> Jun 15 | G29: 28 | H29: 28120 | J29: 6 | K29: Jun 15 | M29: 6 | N29: Jun 15 | Q29: 6 | R29: Jun 15 | S29: May 15
B30: =IF('DA S0FTWARE'!$R$21=0," ",code!J30) -> 7 | C30: 9 | D30: 30 | E30: =IF('DA S0FTWARE'!$R$21=0," ",code!K30) -> Jul 15 | G30: 29 | H30: 28940 | J30: 7 | K30: Jul 15 | M30: 7 | N30: Jul 15 | Q30: 7 | R30: Jul 15 | S30: Jun 15
B31: =IF('DA S0FTWARE'!$R$21=0," ",code!J31) -> 8 | C31: 10 | D31: 31 | E31: =IF('DA S0FTWARE'!$R$21=0," ",code!K31) -> Aug 15 | G31: 30 | H31: 29760 | J31: 8 | K31: Aug 15 | M31: 8 | N31: Aug 15 | Q31: 8 | R31: Aug 15 | S31: Jul 15
B32: =IF('DA S0FTWARE'!$R$21=0," ",code!J32) -> 9 | C32: 11 | D32: 30 | E32: =IF('DA S0FTWARE'!$R$21=0," ",code!K32) -> Sep 15 | G32: 31 | H32: 30580 | J32: 9 | K32: Sep 15 | M32: 9 | N32: Sep 15 | Q32: 9 | R32: Sep 15 | S32: Aug 15
B33: =IF('DA S0FTWARE'!$R$21=0," ",code!J33) -> 10 | C33: 12 | D33: 31 | E33: =IF('DA S0FTWARE'!$R$21=0," ",code!K33) -> Oct 15 | G33: 32 | H33: 31460 | J33: 10 | K33: =CONCATENATE(K18," ",RIGHT($L$9,2)) -> Oct 15 | M33: 10 | N33: Oct 15 | Q33: 10 | R33: Oct 15 | S33: Sep 15
B34: =IF('DA S0FTWARE'!$R$21=0," ",code!J34) -> 11 | C34: =IF('DA S0FTWARE'!$R$21=0," ",code!K34) -> Nov 15 | E34: =IF('DA S0FTWARE'!$R$21=0," ",code!K34) -> Nov 15 | G34: 33 | H34: 32340 | J34: 11 | K34: Nov 15 | M34: 11 | N34: Nov 15 | Q34: 11 | R34: Nov 15 | S34: Oct 15
B35: =IF('DA S0FTWARE'!$R$21=0," ",code!J35) -> 12 | C35: =IF('DA S0FTWARE'!$R$21=0," ",code!K35) -> Dec 15 | E35: =IF('DA S0FTWARE'!$R$21=0," ",code!K35) -> Dec 15 | G35: 34 | H35: 33220 | J35: 12 | K35: Dec 15 | M35: 12 | N35: Dec 15 | Q35: 12 | R35: Dec 15 | S35: Nov 15
B36: =IF('DA S0FTWARE'!$R$21=0," ",code!J36) -> 13 | C36: =IF('DA S0FTWARE'!$R$21=0," ",code!K36) -> Jan 16 | E36: =IF('DA S0FTWARE'!$R$21=0," ",code!K36) -> Jan 16 | G36: 35 | H36: 34170 | J36: 13 | K36: =CONCATENATE(K9," ",RIGHT($L$10,2)) -> Jan 16 | M36: 13 | N36: Jan 16 | Q36: 13 | R36: Jan 16 | S36: Dec 15
B37: =IF('DA S0FTWARE'!$R$21=0," ",code!J37) -> 14 | C37: =IF('DA S0FTWARE'!$R$21=0," ",code!K37) -> Feb 16 | E37: =IF('DA S0FTWARE'!$R$21=0," ",code!K37) -> Feb 16 | G37: 36 | H37: 35120 | J37: 14 | K37: =CONCATENATE(K10," ",RIGHT($L$10,2)) -> Feb 16 | M37: 14 | N37: Feb 16 | Q37: 14 | R37: Feb 16 | S37: Jan 16
B38: =IF('DA S0FTWARE'!$R$21=0," ",code!J38) -> 15 | C38: =IF('DA S0FTWARE'!$R$21=0," ",code!K38) -> Mar 16 | E38: =IF('DA S0FTWARE'!$R$21=0," ",code!K38) -> Mar 16 | G38: 37 | H38: 36070 | J38: 15 | K38: Mar 16 | M38: 15 | N38: Mar 16 | Q38: 15 | R38: Mar 16 | S38: Feb 16
B39: =IF('DA S0FTWARE'!$R$21=0," ",code!J39) -> 16 | C39: =IF('DA S0FTWARE'!$R$21=0," ",code!K39) -> Apr 16 | E39: =IF('DA S0FTWARE'!$R$21=0," ",code!K39) -> Apr 16 | G39: 38 | H39: 37100 | J39: 16 | K39: Apr 16 | M39: 16 | N39: Apr 16 | Q39: 16 | R39: Apr 16 | S39: Mar 16
B40: =IF('DA S0FTWARE'!$R$21=0," ",code!J40) -> 17 | C40: =IF('DA S0FTWARE'!$R$21=0," ",code!K40) -> May 16 | E40: =IF('DA S0FTWARE'!$R$21=0," ",code!K40) -> May 16 | G40: 39 | H40: 38130 | J40: 17 | K40: May 16 | M40: 17 | N40: May 16 | Q40: 17 | R40: May 16 | S40: Apr 16
B41: =IF('DA S0FTWARE'!$R$21=0," ",code!J41) -> 18 | C41: =IF('DA S0FTWARE'!$R$21=0," ",code!K41) -> Jun 16 | E41: =IF('DA S0FTWARE'!$R$21=0," ",code!K41) -> Jun 16 | G41: 40 | H41: 39160 | J41: 18 | K41: Jun 16 | M41: 18 | N41: Jun 16 | Q41: 18 | R41: Jun 16 | S41: May 16
B42: =IF('DA S0FTWARE'!$R$21=0," ",code!J42) -> 19 | C42: =IF('DA S0FTWARE'!$R$21=0," ",code!K42) -> Jul 16 | E42: =IF('DA S0FTWARE'!$R$21=0," ",code!K42) -> Jul 16 | G42: 41 | H42: 40270 | J42: 19 | K42: Jul 16 | M42: 19 | N42: Jul 16 | Q42: 19 | R42: Jul 16 | S42: Jun 16
B43: =IF('DA S0FTWARE'!$R$21=0," ",code!J43) -> 20 | C43: =IF('DA S0FTWARE'!$R$21=0," ",code!K43) -> Aug 16 | E43: =IF('DA S0FTWARE'!$R$21=0," ",code!K43) -> Aug 16 | G43: 42 | H43: 41380 | J43: 20 | K43: Aug 16 | M43: 20 | N43: Aug 16 | Q43: 20 | R43: Aug 16 | S43: Jul 16
B44: =IF('DA S0FTWARE'!$R$21=0," ",code!J44) -> 21 | C44: =IF('DA S0FTWARE'!$R$21=0," ",code!K44) -> Sep 16 | E44: =IF('DA S0FTWARE'!$R$21=0," ",code!K44) -> Sep 16 | G44: 43 | H44: 42490 | J44: 21 | K44: Sep 16 | M44: 21 | N44: Sep 16 | Q44: 21 | R44: Sep 16 | S44: Aug 16
B45: =IF('DA S0FTWARE'!$R$21=0," ",code!J45) -> 22 | C45: =IF('DA S0FTWARE'!$R$21=0," ",code!K45) -> Oct 16 | E45: =IF('DA S0FTWARE'!$R$21=0," ",code!K45) -> Oct 16 | G45: 44 | H45: 43680 | J45: 22 | K45: Oct 16 | M45: 22 | N45: Oct 16 | Q45: 22 | R45: Oct 16 | S45: Sep 16
B46: =IF('DA S0FTWARE'!$R$21=0," ",code!J46) -> 23 | C46: =IF('DA S0FTWARE'!$R$21=0," ",code!K46) -> Nov 16 | E46: =IF('DA S0FTWARE'!$R$21=0," ",code!K46) -> Nov 16 | G46: 45 | H46: 44870 | J46: 23 | K46: Nov 16 | M46: 23 | N46: Nov 16 | Q46: 23 | R46: Nov 16 | S46: Oct 16
B47: =IF('DA S0FTWARE'!$R$21=0," ",code!J47) -> 24 | C47: =IF('DA S0FTWARE'!$R$21=0," ",code!K47) -> Dec 16 | E47: =IF('DA S0FTWARE'!$R$21=0," ",code!K47) -> Dec 16 | G47: 46 | H47: 46060 | J47: 24 | K47: Dec 16 | M47: 24 | N47: Dec 16 | Q47: 24 | R47: Dec 16 | S47: Nov 16
B48: =IF('DA S0FTWARE'!$R$21=0," ",code!J48) -> 25 | C48: =IF('DA S0FTWARE'!$R$21=0," ",code!K48) -> Jan 17 | E48: =IF('DA S0FTWARE'!$R$21=0," ",code!K48) -> Jan 17 | G48: 47 | H48: 47330 | J48: 25 | K48: =CONCATENATE(K9," ",RIGHT($L$11,2)) -> Jan 17 | M48: 25 | N48: Jan 17 | Q48: 25 | R48: Jan 17 | S48: Dec 16
B49: =IF('DA S0FTWARE'!$R$21=0," ",code!J49) -> 26 | C49: =IF('DA S0FTWARE'!$R$21=0," ",code!K49) -> Feb 17 | E49: =IF('DA S0FTWARE'!$R$21=0," ",code!K49) -> Feb 17 | G49: 48 | H49: 48600 | J49: 26 | K49: =CONCATENATE(K10," ",RIGHT($L$11,2)) -> Feb 17 | M49: 26 | N49: Feb 17 | Q49: 26 | R49: Feb 17 | S49: Jan 17
B50: =IF('DA S0FTWARE'!$R$21=0," ",code!J50) -> 27 | C50: =IF('DA S0FTWARE'!$R$21=0," ",code!K50) -> Mar 17 | E50: =IF('DA S0FTWARE'!$R$21=0," ",code!K50) -> Mar 17 | G50: 49 | H50: 49870 | J50: 27 | K50: Mar 17 | M50: 27 | N50: Mar 17 | Q50: 27 | R50: Mar 17 | S50: Feb 17
B51: =IF('DA S0FTWARE'!$R$21=0," ",code!J51) -> 28 | C51: =IF('DA S0FTWARE'!$R$21=0," ",code!K51) -> Apr 17 | E51: =IF('DA S0FTWARE'!$R$21=0," ",code!K51) -> Apr 17 | G51: 50 | H51: 51230 | J51: 28 | K51: Apr 17 | M51: 28 | N51: Apr 17 | Q51: 28 | R51: Apr 17 | S51: Mar 17
B52: =IF('DA S0FTWARE'!$R$21=0," ",code!J52) -> 29 | C52: =IF('DA S0FTWARE'!$R$21=0," ",code!K52) -> May 17 | E52: =IF('DA S0FTWARE'!$R$21=0," ",code!K52) -> May 17 | G52: 51 | H52: 52590 | J52: 29 | K52: May 17 | M52: 29 | N52: May 17 | Q52: 29 | R52: May 17 | S52: Apr 17
B53: =IF('DA S0FTWARE'!$R$21=0," ",code!J53) -> 30 | C53: =IF('DA S0FTWARE'!$R$21=0," ",code!K53) -> Jun 17 | E53: =IF('DA S0FTWARE'!$R$21=0," ",code!K53) -> Jun 17 | G53: 52 | H53: 53950 | J53: 30 | K53: Jun 17 | M53: 30 | N53: Jun 17 | Q53: 30 | R53: Jun 17 | S53: May 17
B54: =IF('DA S0FTWARE'!$R$21=0," ",code!J54) -> 31 | C54: =IF('DA S0FTWARE'!$R$21=0," ",code!K54) -> Jul 17 | E54: =IF('DA S0FTWARE'!$R$21=0," ",code!K54) -> Jul 17 | G54: 53 | H54: 55410 | J54: 31 | K54: Jul 17 | M54: 31 | N54: Jul 17 | Q54: 31 | R54: Jul 17 | S54: Jun 17
B55: =IF('DA S0FTWARE'!$R$21=0," ",code!J55) -> 32 | C55: =IF('DA S0FTWARE'!$R$21=0," ",code!K55) -> Aug 17 | E55: =IF('DA S0FTWARE'!$R$21=0," ",code!K55) -> Aug 17 | G55: 54 | H55: 56870 | J55: 32 | K55: Aug 17 | M55: 32 | N55: Aug 17 | Q55: 32 | R55: Aug 17 | S55: Jul 17
B56: =IF('DA S0FTWARE'!$R$21=0," ",code!J56) -> 33 | C56: =IF('DA S0FTWARE'!$R$21=0," ",code!K56) -> Sep 17 | E56: =IF('DA S0FTWARE'!$R$21=0," ",code!K56) -> Sep 17 | G56: 55 | H56: 58330 | J56: 33 | K56: Sep 17 | M56: 33 | N56: Sep 17 | Q56: 33 | R56: Sep 17 | S56: Aug 17
B57: =IF('DA S0FTWARE'!$R$21=0," ",code!J57) -> 34 | C57: =IF('DA S0FTWARE'!$R$21=0," ",code!K57) -> Oct 17 | E57: =IF('DA S0FTWARE'!$R$21=0," ",code!K57) -> Oct 17 | G57: 56 | H57: 59890 | J57: 34 | K57: Oct 17 | M57: 34 | N57: Oct 17 | Q57: 34 | R57: Oct 17 | S57: Sep 17
B58: =IF('DA S0FTWARE'!$R$21=0," ",code!J58) -> 35 | C58: =IF('DA S0FTWARE'!$R$21=0," ",code!K58) -> Nov 17 | E58: =IF('DA S0FTWARE'!$R$21=0," ",code!K58) -> Nov 17 | G58: 57 | H58: 61450 | J58: 35 | K58: Nov 17 | M58: 35 | N58: Nov 17 | Q58: 35 | R58: Nov 17 | S58: Oct 17
B59: =IF('DA S0FTWARE'!$R$21=0," ",code!J59) -> 36 | C59: =IF('DA S0FTWARE'!$R$21=0," ",code!K59) -> Dec 17 | E59: =IF('DA S0FTWARE'!$R$21=0," ",code!K59) -> Dec 17 | G59: 58 | H59: 63010 | J59: 36 | K59: Dec 17 | M59: 36 | N59: Dec 17 | Q59: 36 | R59: Dec 17 | S59: Nov 17
G60: 59 | H60: 64670 | M60: 0 | N60: 0 | Q60: 37 | S60: Dec 17
G61: 60 | H61: 66330
G62: 61 | H62: 67990 | J62: 10 | K62: 14 | L62: =LOOKUP(K62,J24:K59,K24:K59) -> Feb 16 | M62: =IF('DA S0FTWARE'!R21>0,code!J62,0) -> 10
G63: 62 | H63: 69750 | J63: =CONCATENATE(J62," ",L62) -> 10 Feb 16 | K63: =MONTH(J63) -> 2 | L63: =RIGHT(L62,2) -> 16
G64: 63 | H64: 71510 | J64: =IF(M62>0,M62&"-"&K63&"-"&L63,0) -> 10-2-16
G65: 64 | H65: 73270
G66: 65 | H66: 75150
G67: 66 | H67: 77030 | N67: _______
G68: 67 | H68: 78910 | J68: =CONCATENATE("Enhanced D.A w.e.f ",DAY(DATE(code!M8,code!K8,1)),"-",MONTH(DATE(code!M8,code!K8,1)),"-",YEAR(DATE(code!M8,code!K8,1))," G.O(P).No:",N70,",Dt:",O70) -> Enhanced D.A w.e.f 1-1-2015 G.O(P).No:18,Dt:10-2-16
G69: 68 | H69: 80930
G70: 69 | H70: 82950 | J70: =IF('DA S0FTWARE'!R21=" ",_________,'DA S0FTWARE'!R21) -> 18 | N70: =IF('DA S0FTWARE'!R21=0,N67,'DA S0FTWARE'!R21) -> 18 | O70: =IF('DA S0FTWARE'!R21=J64,N67,J64) -> 10-2-16
G71: 70 | H71: 84970
G72: 71 | H72: 87130
G73: 72 | H73: 89290
G74: 73 | H74: 91450
G75: 74 | H75: 93780
G76: 75 | H76: 96110 | J76: =CONCATENATE("Enhanced D.A w.e.f ",DAY(DATE(code!M8,code!K8,1)),"-",MONTH(DATE(code!M8,code!K8,1)),"-",YEAR(DATE(code!M8,code!K8,1))," G.O(P).No:",N70,",Dt:",O70) -> Enhanced D.A w.e.f 1-1-2015 G.O(P).No:18,Dt:10-2-16
G77: 76 | H77: 98440
G78: 77 | H78: 100770
G79: 78 | H79: 103290
G80: 79 | H80: 105810
G81: 80 | H81: 108330
H82: 110850

Sheet Compatibility Report (hidden)
B1: Compatibility Report for DA software PRC 2010.xlsx
B2: Run on 08/11/2010 17:41
B4: The following features in this workbook are not supported by earlier versions of Excel. These features may be lost or degraded when you save this workbook in an earlier file format.
B6: Minor loss of fidelity | E6: # of occurrences
B8: Some cells or styles in this workbook contain formatting that is not supported by the selected file format. These formats will be converted to the closest format available. | E8: 38
